Workbook

Sheet Traktori
B3: Traktorin tiedot
B4: Merkki | C4: Massey-Ferguson 7497 | E4: PA tiheys | F4: 0.84 | G4: kg/l
B5: Massa | C5: 7700 | D5: kg | E5: Nim. nopeus | F5: =+D13 -> 2200 | G5: 1/min
B6: Takarenkaan säde | C6: 0.95 | D6: m
B9: Moottori
B10: Piste | C10: Momentti Nm | D10: Nopeus 1/min | E10: PA l/h | G10: PA kg/h | H10: PA g/kWh | I10: P kW
B11: Mmax | C11: 800 | D11: 1200 | E11: 30 | G11: =+E11*$F$4 -> 25.2 | H11: =+G11*1000/I11 -> 250.6690354 | I11: =+C11*(D11*2*PI()/60)/1000 -> 100.5309649 | K11: Suurimman vääntömomentin kohta
B12: Pmax/P80% | C12: 700 | D12: 2000 | E12: 49 | G12: 41.16 | H12: =+G12*1000/I12 -> 280.7493196 | I12: 146.6076572 | K12: Nimellistehon ja suurimman vääntömomentin väliltä piste, esim. suurimman tehon piste
B13: Pnim | C13: 600 | D13: 2200 | E13: 47 | G13: 39.48 | H13: =+G13*1000/I13 -> 285.6107797 | I13: 138.2300768 | K13: Nimellistehon piste
B14: P85 | C14: 500 | D14: 2220 | E14: 45 | G14: 37.8 | H14: =+G14*1000/I14 -> 325.1922621 | I14: 116.2389282 | K14: Osatehon piste esim. 85% piste
B15: P25 | C15: 150 | D15: 2250 | E15: 20 | G15: 16.8 | H15: =+G15*1000/I15 -> 475.3427634 | I15: 35.34291735 | K15: Osatehon piste esim. 25% piste
B16: P0 | C16: 0 | D16: 2260 | E16: 9 | G16: 7.56 | I16: 0 | K16: Ilman kuormaa suurin nopeus
B18: Vaihteisto | L18: Katso että alla olevat kuvat näyttävät tehokäyrän oikein
C19: Vaihde | D19: Nim. nop. km/h | E19: Välitys
C20: 2 | D20: 2 | E20: =+Traktori!$C$6*Traktori!$F$5*PI()/30/D20*3.6 -> 393.9557188 | F20: Anna tähän vaihteiden merkinnät ja nimellisnopeudet. Voit myös antaa vaihtoehtoisesti esim. tasaisin välein nopeuksia. Kaikkiaan tähän mahtuu 12 vaihdetta. Jos et anna kaikkia kohtia, tyhjennä ylimääräiset kohdat. Tyhjät kohdat voivbat näkyä muilla sivuilla virheinä, mutta se ei haittaa laskentaa.
C21: 3 | D21: 3 | E21: =+Traktori!$C$6*Traktori!$F$5*PI()/30/D21*3.6 -> 262.6371458
C22: 4 | D22: 4 | E22: =+Traktori!$C$6*Traktori!$F$5*PI()/30/D22*3.6 -> 196.9778594
C23: 5 | D23: 5 | E23: =+Traktori!$C$6*Traktori!$F$5*PI()/30/D23*3.6 -> 157.5822875
C24: 6 | D24: 6 | E24: =+Traktori!$C$6*Traktori!$F$5*PI()/30/D24*3.6 -> 131.3185729
C25: 7 | D25: 7 | E25: =+Traktori!$C$6*Traktori!$F$5*PI()/30/D25*3.6 -> 112.5587768
C26: 8 | D26: 8 | E26: =+Traktori!$C$6*Traktori!$F$5*PI()/30/D26*3.6 -> 98.48892969
C27: 9 | D27: 9 | E27: =+Traktori!$C$6*Traktori!$F$5*PI()/30/D27*3.6 -> 87.54571528
C28: 10 | D28: 10 | E28: =+Traktori!$C$6*Traktori!$F$5*PI()/30/D28*3.6 -> 78.79114375
C29: 11 | D29: 11 | E29: =+Traktori!$C$6*Traktori!$F$5*PI()/30/D29*3.6 -> 71.6283125
C30: 12 | D30: 12 | E30: =+Traktori!$C$6*Traktori!$F$5*PI()/30/D30*3.6 -> 65.65928646
C31: 13 | D31: 13 | E31: =+Traktori!$C$6*Traktori!$F$5*PI()/30/D31*3.6 -> 60.60857212

Sheet Kyntö
B2: Kaksoisaura
B5: Maalaji | C5: Terän leveys | D5: Teriä | E5: Työsyvyys cm | F5: Maan kulkukyky | G5: Rinnekulma | H5: Lisäpainoja | I5: Painonsiirto | J5: Työleveys | M5: Tuloksia
D6: =+D8 -> 5 | E6: =+E8 -> 21 | G6: =+G8 -> 0 | H6: =+H8 -> 493 | J6: =+O10 -> 2.032 | K6: m
M7: f | O7: =+IF(F12=1,0.15,IF(F12=2,0.1,0.07)) -> 0.1
B8: Jäykkä | C8: 12 | D8: 5 | E8: 21 | F8: Pehmeä | G8: 0 | H8: 493 | I8: Ei | M8: Tr kulkuvastus | O8: =+Traktori!C5*9.81/1000*O7 -> 7.5537 | P8: kN
B9: Keskijäykkä | C9: 14 | F9: Normaali | I9: Heikko | M9: Mäkivastus | O9: =+(Traktori!C5+O11)*9.81/1000*SIN(RADIANS(G8)) -> 0 | P9: kN
B10: Kevyt | C10: 16 | F10: Kova | I10: Hyvä | M10: Työleveys | O10: =+(10+C12*2)*0.0254*D8 -> 2.032 | P10: m
C11: 18 | I11: Erinomainen | M11: Auran massa | O11: =+D8*350 -> 1750 | P11: kg
B12: 2 | C12: 3 | F12: 2 | I12: 3
B14: Vaihde | C14: Nim. nop. km/h | D14: Vetovastus kN | E14: Luisto % | F14: Moottori 1/min | G14: Kulutus l/h | H14: Ajonopeus km/h | I14: Työsaavutus ha/h | J14: Kulutus l/ha | N14: Välityssuhde | O14: Kehävoima | P14: Akselimomentti | Q14: Moottorimom. | R14: PA g/kWh | S14: P kW | T14: μ | U14: Kehän. km/h
A15: =+IF(F15=0,"Moottori sammui!"," ") ->  | B15: =+Traktori!C20 -> 2 | C15: =+Traktori!D20 -> 2 | D15: =+kynto($B$12,C15,$O$10,$E$8/100) -> 18.6391296 | E15: =+IF(AND(F15>0,Luisto($F$12,T15)<=100),Luisto($F$12,T15),"") -> 8.944647611 | F15: =+Piste(Traktori!$C$11:$E$16,Q15,1) -> 2255.789173 | G15: =IF(F15>1000,Piste(Traktori!$C$11:$E$15,Q15,2),"") -> 13.63190923 | H15: =+IF(ISNUMBER(E15),U15*(1-E15/100),"") -> 1.867287983 | I15: =+IF(ISNUMBER(H15),H15*$O$10/10,"") -> 0.3794329181 | J15: =+IF(ISNUMBER(I15),G15/I15,"") -> 35.92706003 | K15: =+IF(ISNUMBER(E15),LOOKUP(E15,$W$15:$W$19,$X$15:$X$19),"") -> Luisto pieni! | N15: =+Traktori!E20 -> 393.9557188 | O15: =+D15+$O$8+$O$9 -> 26.1928296 | P15: =+O15*Traktori!$C$6 -> 24.88318812 | Q15: =+P15/N15*1000 -> 63.16239855 | R15: =+IF(F15>0,G15*Traktori!$F$4*1000/S15,0) -> 767.4502501 | S15: =+Q15*(F15*2*PI()/60)/1000 -> 14.92058117 | T15: =+IF(F15>0,O15/((Traktori!$C$5+$H$8+($I$12-1)*0.15*$O$11)*9.81/1000),0) -> 0.3062644197 | U15: =+F15/N15*2*PI()/60*Traktori!$C$6*3.6 -> 2.05071743 | W15: 0 | X15: Luisto pieni!
B16: =+Traktori!C21 -> 3 | C16: =+Traktori!D21 -> 3 | D16: 19.5352416 | E16: =+IF(AND(F16>0,Luisto($F$12,T16)<=100),Luisto($F$12,T16),"") -> 9.566548035 | F16: =+Piste(Traktori!$C$11:$E$16,Q16,1) -> 2253.467668 | G16: =IF(F16>1000,Piste(Traktori!$C$11:$E$15,Q16,2),"") -> 16.18556493 | H16: =+IF(ISNUMBER(E16),U16*(1-E16/100),"") -> 2.778939002 | I16: =+IF(ISNUMBER(H16),H16*$O$10/10,"") -> 0.5646804052 | J16: =+IF(ISNUMBER(I16),G16/I16,"") -> 28.66323107 | K16: =+IF(ISNUMBER(E16),LOOKUP(E16,$W$15:$W$19,$X$15:$X$19),"") -> Luisto pieni! | N16: =+Traktori!E21 -> 262.6371458 | O16: 27.0889416 | P16: =+O16*Traktori!$C$6 -> 25.73449452 | Q16: 97.98497634 | R16: =+IF(F16>0,G16*Traktori!$F$4*1000/S16,0) -> 587.9869767 | S16: 23.12274775 | T16: =+IF(F16>0,O16/((Traktori!$C$5+$H$8+($I$12-1)*0.15*$O$11)*9.81/1000),0) -> 0.3167423721 | U16: =+F16/N16*2*PI()/60*Traktori!$C$6*3.6 -> 3.072910457 | W16: 10 | X16: Sopiva luisto!
B17: =+Traktori!C22 -> 4 | C17: =+Traktori!D22 -> 4 | D17: 20.7897984 | E17: =+IF(AND(F17>0,Luisto($F$12,T17)<=100),Luisto($F$12,T17),"") -> 10.51051717 | F17: =+Piste(Traktori!$C$11:$E$16,Q17,1) -> 2250.886853 | G17: =IF(F17>1000,Piste(Traktori!$C$11:$E$15,Q17,2),"") -> 19.02446194 | H17: 3.66237637 | I17: 0.7441948785 | J17: 25.56381735 | K17: Sopiva luisto! | N17: =+Traktori!E22 -> 196.9778594 | O17: 28.3434984 | P17: =+O17*Traktori!$C$6 -> 26.92632348 | Q17: 136.6972083 | R17: =+IF(F17>0,G17*Traktori!$F$4*1000/S17,0) -> 495.9635284 | S17: 32.22121612 | T17: =+IF(F17>0,O17/((Traktori!$C$5+$H$8+($I$12-1)*0.15*$O$11)*9.81/1000),0) -> 0.3314115055 | U17: =+F17/N17*2*PI()/60*Traktori!$C$6*3.6 -> 4.092521551 | W17: 20 | X17: Uravaara!
B18: =+Traktori!C23 -> 5 | C18: =+Traktori!D23 -> 5 | D18: 22.4028 | E18: =+IF(AND(F18>0,Luisto($F$12,T18)<=100),Luisto($F$12,T18),"") -> 11.86232241 | F18: =+Piste(Traktori!$C$11:$E$16,Q18,1) -> 2247.377516 | G18: =IF(F18>1000,Piste(Traktori!$C$11:$E$15,Q18,2),"") -> 22.18540328 | H18: 4.501787158 | I18: 0.9147631504 | J18: 24.25262022 | K18: Sopiva luisto! | N18: =+Traktori!E23 -> 157.5822875 | O18: 29.9565 | P18: =+O18*Traktori!$C$6 -> 28.458675 | Q18: 180.5956459 | R18: =+IF(F18>0,G18*Traktori!$F$4*1000/S18,0) -> 438.4647542 | S18: 42.50225035 | T18: =+IF(F18>0,O18/((Traktori!$C$5+$H$8+($I$12-1)*0.15*$O$11)*9.81/1000),0) -> 0.3502718198 | U18: =+F18/N18*2*PI()/60*Traktori!$C$6*3.6 -> 5.107676173 | W18: 30 | X18: Suuri luisto !
B19: =+Traktori!C24 -> 6 | C19: =+Traktori!D24 -> 6 | D19: 24.3742464 | E19: =+IF(AND(F19>0,Luisto($F$12,T19)<=100),Luisto($F$12,T19),"") -> 13.75283302 | F19: =+Piste(Traktori!$C$11:$E$16,Q19,1) -> 2243.059128 | G19: =IF(F19>1000,Piste(Traktori!$C$11:$E$15,Q19,2),"") -> 25.78406004 | H19: 5.276113504 | I19: 1.072106264 | J19: 24.04991082 | K19: Sopiva luisto! | N19: =+Traktori!E24 -> 131.3185729 | O19: 31.9279464 | P19: =+O19*Traktori!$C$6 -> 30.33154908 | Q19: 230.9768406 | R19: =+IF(F19>0,G19*Traktori!$F$4*1000/S19,0) -> 399.2020965 | S19: 54.25475122 | T19: =+IF(F19>0,O19/((Traktori!$C$5+$H$8+($I$12-1)*0.15*$O$11)*9.81/1000),0) -> 0.373323315 | U19: =+F19/N19*2*PI()/60*Traktori!$C$6*3.6 -> 6.117433985 | W19: 100
B20: =+Traktori!C25 -> 7 | C20: =+Traktori!D25 -> 7 | D20: 26.7041376 | E20: =+IF(AND(F20>0,Luisto($F$12,T20)<=100),Luisto($F$12,T20),"") -> 16.37915243 | F20: =+Piste(Traktori!$C$11:$E$16,Q20,1) -> 2238.073942 | G20: =IF(F20>1000,Piste(Traktori!$C$11:$E$15,Q20,2),"") -> 29.93838169 | H20: 5.954761271 | I20: 1.21000749 | J20: 24.74231104 | K20: Sopiva luisto! | N20: =+Traktori!E25 -> 112.5587768 | O20: 34.2578376 | P20: =+O20*Traktori!$C$6 -> 32.54494572 | Q20: 289.1373436 | R20: =+IF(F20>0,G20*Traktori!$F$4*1000/S20,0) -> 371.108047 | S20: 67.76527973 | T20: =+IF(F20>0,O20/((Traktori!$C$5+$H$8+($I$12-1)*0.15*$O$11)*9.81/1000),0) -> 0.4005659913 | U20: =+F20/N20*2*PI()/60*Traktori!$C$6*3.6 -> 7.121144361
B21: =+Traktori!C26 -> 8 | C21: =+Traktori!D26 -> 8 | D21: 29.3924736 | E21: =+IF(AND(F21>0,Luisto($F$12,T21)<=100),Luisto($F$12,T21),"") -> 20.03860514 | F21: =+Piste(Traktori!$C$11:$E$16,Q21,1) -> 2232.310825 | G21: =IF(F21>1000,Piste(Traktori!$C$11:$E$15,Q21,2),"") -> 34.74097903 | H21: 6.490861358 | I21: 1.318943028 | J21: 26.34001492 | K21: Uravaara! | N21: =+Traktori!E26 -> 98.48892969 | O21: 36.9461736 | P21: =+O21*Traktori!$C$6 -> 35.09886492 | Q21: 356.3737065 | R21: =+IF(F21>0,G21*Traktori!$F$4*1000/S21,0) -> 350.2937607 | S21: 83.30842755 | T21: =+IF(F21>0,O21/((Traktori!$C$5+$H$8+($I$12-1)*0.15*$O$11)*9.81/1000),0) -> 0.4319998485 | U21: =+F21/N21*2*PI()/60*Traktori!$C$6*3.6 -> 8.11749391
B22: =+Traktori!C27 -> 9 | C22: =+Traktori!D27 -> 9 | D22: 32.4392544 | E22: =+IF(AND(F22>0,Luisto($F$12,T22)<=100),Luisto($F$12,T22),"") -> 25.18374766 | F22: =+Piste(Traktori!$C$11:$E$16,Q22,1) -> 2225.658645 | G22: =IF(F22>1000,Piste(Traktori!$C$11:$E$15,Q22,2),"") -> 40.2844629 | H22: 6.811995223 | I22: 1.384197429 | J22: 29.10311929 | K22: Uravaara! | N22: =+Traktori!E27 -> 87.54571528 | O22: 39.9929544 | P22: =+O22*Traktori!$C$6 -> 37.99330668 | Q22: 433.9824806 | R22: =+IF(F22>0,G22*Traktori!$F$4*1000/S22,0) -> 334.5472712 | S22: 101.1484826 | T22: =+IF(F22>0,O22/((Traktori!$C$5+$H$8+($I$12-1)*0.15*$O$11)*9.81/1000),0) -> 0.4676248866 | U22: =+F22/N22*2*PI()/60*Traktori!$C$6*3.6 -> 9.104967182
B23: =+Traktori!C28 -> 10 | C23: =+Traktori!D28 -> 10 | D23: 35.84448 | E23: =+IF(AND(F23>0,Luisto($F$12,T23)<=100),Luisto($F$12,T23),"") -> 32.51247557 | F23: =+Piste(Traktori!$C$11:$E$16,Q23,1) -> 2215.347957 | G23: =IF(F23>1000,Piste(Traktori!$C$11:$E$15,Q23,2),"") -> 45.46520435 | H23: 6.79583406 | I23: 1.380913481 | J23: 32.92400644 | K23: Suuri luisto ! | N23: =+Traktori!E28 -> 78.79114375 | O23: 43.39818 | P23: =+O23*Traktori!$C$6 -> 41.228271 | Q23: 523.2602173 | R23: =+IF(F23>0,G23*Traktori!$F$4*1000/S23,0) -> 314.6082807 | S23: 121.3915017 | T23: =+IF(F23>0,O23/((Traktori!$C$5+$H$8+($I$12-1)*0.15*$O$11)*9.81/1000),0) -> 0.5074411057 | U23: =+F23/N23*2*PI()/60*Traktori!$C$6*3.6 -> 10.06976344
B24: =+Traktori!C29 -> 11 | C24: =+Traktori!D29 -> 11 | D24: 39.6081504 | E24: =+IF(AND(F24>0,Luisto($F$12,T24)<=100),Luisto($F$12,T24),"") -> 43.11779339 | F24: =+Piste(Traktori!$C$11:$E$16,Q24,1) -> 2148.993064 | G24: =IF(F24>1000,Piste(Traktori!$C$11:$E$15,Q24,2),"") -> 47.51006936 | H24: 6.111973373 | I24: 1.241952989 | J24: 38.25432184 | K24: Suuri luisto ! | N24: =+Traktori!E29 -> 71.6283125 | O24: 47.1618504 | P24: =+O24*Traktori!$C$6 -> 44.80375788 | Q24: 625.503468 | R24: =+IF(F24>0,G24*Traktori!$F$4*1000/S24,0) -> 283.5120987 | S24: 140.7645686 | T24: =+IF(F24>0,O24/((Traktori!$C$5+$H$8+($I$12-1)*0.15*$O$11)*9.81/1000),0) -> 0.5514485058 | U24: =+F24/N24*2*PI()/60*Traktori!$C$6*3.6 -> 10.74496532
B25: =+Traktori!C30 -> 12 | C25: =+Traktori!D30 -> 12 | D25: 43.7302656 | E25: =+IF(AND(F25>0,Luisto($F$12,T25)<=100),Luisto($F$12,T25),"") -> 58.74079552 | F25: =+Piste(Traktori!$C$11:$E$16,Q25,1) -> 1663.929726 | G25: =IF(F25>1000,Piste(Traktori!$C$11:$E$15,Q25,2),"") -> 41.018331 | H25: 3.74467728 | I25: 0.7609184234 | J25: 53.90634493 | K25: Suuri luisto ! | N25: =+Traktori!E30 -> 65.65928646 | O25: 51.2839656 | P25: =+O25*Traktori!$C$6 -> 48.71976732 | Q25: 742.0087842 | R25: =+IF(F25>0,G25*Traktori!$F$4*1000/S25,0) -> 266.4922761 | S25: 129.2922952 | T25: =+IF(F25>0,O25/((Traktori!$C$5+$H$8+($I$12-1)*0.15*$O$11)*9.81/1000),0) -> 0.5996470868 | U25: =+F25/N25*2*PI()/60*Traktori!$C$6*3.6 -> 9.075980324
A26: Moottori sammui! | B26: =+Traktori!C31 -> 13 | C26: =+Traktori!D31 -> 13 | D26: 48.2108256 | E26: =+IF(AND(F26>0,Luisto($F$12,T26)<=100),Luisto($F$12,T26),"") ->  | F26: =+Piste(Traktori!$C$11:$E$16,Q26,1) -> 0 | G26: =IF(F26>1000,Piste(Traktori!$C$11:$E$15,Q26,2),"") ->  | N26: =+Traktori!E31 -> 60.60857212 | O26: 55.7645256 | P26: =+O26*Traktori!$C$6 -> 52.97629932 | Q26: 874.0727173 | R26: =+IF(F26>0,G26*Traktori!$F$4*1000/S26,0) -> 0 | S26: 0 | T26: =+IF(F26>0,O26/((Traktori!$C$5+$H$8+($I$12-1)*0.15*$O$11)*9.81/1000),0) -> 0 | U26: =+F26/N26*2*PI()/60*Traktori!$C$6*3.6 -> 0

Sheet S-piikki
B1: S-piikkiäes
C3: =+C9 -> 6.7 | D3: =+D6 -> 7 | E3: =+E6 -> 7 | G3: =+G6 -> 0 | H3: =+H6 -> 400
B4: Maalaji | C4: Työleveys m | D4: Piikkiväli cm | E4: Työsyvyys cm | F4: Maan kulkukyky | G4: Rinnekulma | H4: Lisäpainoja kg | L4: Tuloksia
L5: f | N5: =+IF(F9=1,0.15,IF(F9=2,0.1,0.07)) -> 0.1
B6: Multamaa | C6: 67 | D6: 7 | E6: 7 | F6: Pehmeä | G6: 0 | H6: 400 | L6: Tr kulkuvastus | N6: =+Traktori!C5*9.81/1000*N5 -> 7.5537 | O6: kN
B7: Savimaa | F7: Normaali | L7: Tr mäkivastus | N7: =+Traktori!C5*9.81/1000*SIN(RADIANS(G6)) -> 0 | O7: kN
F8: Kova | L8: Työleveys | N8: =+C9 -> 6.7 | O8: m
B9: 2 | C9: =+C6/10 -> 6.7 | F9: 2
B11: Vaihde | C11: Nim. nop. km/h | D11: Vetovastus kN | E11: Luisto % | F11: Moottori 1/min | G11: Kulutus l/h | H11: Ajonopeus km/h | I11: Työsaavutus ha/h | J11: Kulutus l/ha | T11: Vetohyötysuhde | U11: Kehän. km/h | V11: Välityssuhde | W11: Kehävoima | X11: Akselimomentti | Y11: Moottorimom. | Z11: PA g/kWh | AA11: P kW | AB11: μ
A12: =+IF(F12=0,"Moottori sammui!"," ") ->  | B12: =+Traktori!C20 -> 2 | C12: =+Traktori!D20 -> 2 | D12: =+spiikki($B$9,C12,+$C$9/($D$6/100),$E$6,$C$9) -> 23.8788 | E12: =+IF(AND(F12>0,Luisto($F$9,AB12)<50),Luisto($F$9,AB12),"") -> 15.86267095 | F12: =+Piste(Traktori!$C$11:$E$16,Y12,1) -> 2254.946831 | G12: =IF(F12>1000,Piste(Traktori!$C$11:$E$15,Y12,2),"") -> 14.55848639 | H12: =+IF(ISNUMBER(E12),U12*(1-E12/100),"") -> 1.724774577 | I12: =+IF(ISNUMBER(H12),H12*$C$3/10,"") -> 1.155598967 | J12: =+IF(ISNUMBER(I12),G12/I12,"") -> 12.59821686 | K12: =+IF(ISNUMBER(E12),LOOKUP(E12,$R$12:$R$16,$S$12:$S$16),"") -> Sopiva luisto! | R12: 0 | S12: Luisto pieni! | T12: =+(1-E12/100)*(1-$N$5/AB12)*100 -> 62.86750863 | U12: =+F12/V12*2*PI()/60*Traktori!$C$6*3.6 -> 2.049951664 | V12: =+Traktori!E20 -> 393.9557188 | W12: =+D12+$N$6+$N$7 -> 31.4325 | X12: =+W12*Traktori!$C$6 -> 29.860875 | Y12: =+X12/V12*1000 -> 75.79754165 | Z12: =+IF(F12>0,G12*Traktori!$F$4*1000/AA12,0) -> 683.2434334 | AA12: =+Y12*(F12*2*PI()/60)/1000 -> 17.89864047 | AB12: =+IF(F12>0,W12/((Traktori!$C$5+$H$6)*9.81/1000),0) -> 0.3955714124
B13: =+Traktori!C21 -> 3 | C13: =+Traktori!D21 -> 3 | D13: 26.2037 | E13: =+IF(AND(F13>0,Luisto($F$9,AB13)<50),Luisto($F$9,AB13),"") -> 19.13777313 | F13: =+Piste(Traktori!$C$11:$E$16,Y13,1) -> 2251.85961 | G13: =IF(F13>1000,Piste(Traktori!$C$11:$E$15,Y13,2),"") -> 17.95442846 | H13: =+IF(ISNUMBER(E13),U13*(1-E13/100),"") -> 2.483050673 | I13: =+IF(ISNUMBER(H13),H13*$C$3/10,"") -> 1.663643951 | J13: =+IF(ISNUMBER(I13),G13/I13,"") -> 10.79223018 | K13: =+IF(ISNUMBER(E13),LOOKUP(E13,$R$12:$R$16,$S$12:$S$16),"") -> Sopiva luisto! | R13: 10 | S13: Sopiva luisto! | T13: 61.82819757 | U13: =+F13/V13*2*PI()/60*Traktori!$C$6*3.6 -> 3.070717651 | V13: =+Traktori!E21 -> 262.6371458 | W13: 33.7574 | X13: =+W13*Traktori!$C$6 -> 32.06953 | Y13: 122.1058426 | Z13: =+IF(F13>0,G13*Traktori!$F$4*1000/AA13,0) -> 523.7746756 | AA13: 28.79429001 | AB13: =+IF(F13>0,W13/((Traktori!$C$5+$H$6)*9.81/1000),0) -> 0.4248297907
B14: =+Traktori!C22 -> 4 | C14: =+Traktori!D22 -> 4 | D14: 28.5286 | E14: =+IF(AND(F14>0,Luisto($F$9,AB14)<50),Luisto($F$9,AB14),"") -> 23.08907254 | F14: =+Piste(Traktori!$C$11:$E$16,Y14,1) -> 2247.9411 | G14: =IF(F14>1000,Piste(Traktori!$C$11:$E$15,Y14,2),"") -> 21.71574979 | H14: 3.143476998 | I14: 2.106129589 | J14: 10.31073772 | K14: Uravaara! | R14: 20 | S14: Uravaara! | T14: 59.97348387 | U14: =+F14/V14*2*PI()/60*Traktori!$C$6*3.6 -> 4.087165637 | V14: =+Traktori!E22 -> 196.9778594 | W14: 36.0823 | X14: =+W14*Traktori!$C$6 -> 34.278185 | Y14: 174.0204971 | Z14: =+IF(F14>0,G14*Traktori!$F$4*1000/AA14,0) -> 445.287152 | AA14: 40.96509352 | AB14: =+IF(F14>0,W14/((Traktori!$C$5+$H$6)*9.81/1000),0) -> 0.454088169
B15: =+Traktori!C23 -> 5 | C15: =+Traktori!D23 -> 5 | D15: 30.8535 | E15: =+IF(AND(F15>0,Luisto($F$9,AB15)<50),Luisto($F$9,AB15),"") -> 27.85618093 | F15: =+Piste(Traktori!$C$11:$E$16,Y15,1) -> 2243.010728 | G15: =IF(F15>1000,Piste(Traktori!$C$11:$E$15,Y15,2),"") -> 25.82439321 | H15: 3.677712731 | I15: 2.464067529 | J15: 10.48039183 | K15: Uravaara! | R15: 30 | S15: Suuri luisto ! | T15: 57.21791974 | U15: =+F15/V15*2*PI()/60*Traktori!$C$6*3.6 -> 5.097751655 | V15: =+Traktori!E23 -> 157.5822875 | W15: 38.4072 | X15: =+W15*Traktori!$C$6 -> 36.48684 | Y15: 231.5415049 | Z15: =+IF(F15>0,G15*Traktori!$F$4*1000/AA15,0) -> 398.8600978 | AA15: 54.38621316 | AB15: =+IF(F15>0,W15/((Traktori!$C$5+$H$6)*9.81/1000),0) -> 0.4833465474
B16: =+Traktori!C24 -> 6 | C16: =+Traktori!D24 -> 6 | D16: 33.1784 | E16: =+IF(AND(F16>0,Luisto($F$9,AB16)<50),Luisto($F$9,AB16),"") -> 33.60753511 | F16: =+Piste(Traktori!$C$11:$E$16,Y16,1) -> 2237.599811 | G16: =IF(F16>1000,Piste(Traktori!$C$11:$E$15,Y16,2),"") -> 30.33349045 | H16: 4.051630007 | I16: 2.714592105 | J16: 11.17423512 | K16: Suuri luisto ! | R16: 100 | T16: 53.44048929 | U16: =+F16/V16*2*PI()/60*Traktori!$C$6*3.6 -> 6.10254494 | V16: =+Traktori!E24 -> 131.3185729 | W16: 40.7321 | X16: =+W16*Traktori!$C$6 -> 38.695495 | Y16: 294.6688663 | Z16: =+IF(F16>0,G16*Traktori!$F$4*1000/AA16,0) -> 369.0255075 | AA16: 69.04707521 | AB16: =+IF(F16>0,W16/((Traktori!$C$5+$H$6)*9.81/1000),0) -> 0.5126049257
B17: =+Traktori!C25 -> 7 | C17: =+Traktori!D25 -> 7 | D17: 35.5033 | E17: =+IF(AND(F17>0,Luisto($F$9,AB17)<50),Luisto($F$9,AB17),"") -> 40.54634836 | F17: =+Piste(Traktori!$C$11:$E$16,Y17,1) -> 2231.70835 | G17: =IF(F17>1000,Piste(Traktori!$C$11:$E$15,Y17,2),"") -> 35.2430415 | H17: 4.221738526 | I17: 2.828564812 | J17: 12.45969028 | K17: Suuri luisto ! | T17: 48.48157599 | U17: =+F17/V17*2*PI()/60*Traktori!$C$6*3.6 -> 7.100890205 | V17: =+Traktori!E25 -> 112.5587768 | W17: 43.057 | X17: =+W17*Traktori!$C$6 -> 40.90415 | Y17: 363.402581 | Z17: =+IF(F17>0,G17*Traktori!$F$4*1000/AA17,0) -> 348.5769002 | AA17: 84.92861932 | AB17: =+IF(F17>0,W17/((Traktori!$C$5+$H$6)*9.81/1000),0) -> 0.541863304
B18: =+Traktori!C26 -> 8 | C18: =+Traktori!D26 -> 8 | D18: 37.8282 | E18: =+IF(AND(F18>0,Luisto($F$9,AB18)<50),Luisto($F$9,AB18),"") -> 48.91779061 | F18: =+Piste(Traktori!$C$11:$E$16,Y18,1) -> 2225.336344 | G18: =IF(F18>1000,Piste(Traktori!$C$11:$E$15,Y18,2),"") -> 40.55304637 | H18: 4.133639894 | I18: 2.769538729 | J18: 14.64252727 | K18: Suuri luisto ! | T18: 42.13801921 | U18: =+F18/V18*2*PI()/60*Traktori!$C$6*3.6 -> 8.092132161 | V18: =+Traktori!E26 -> 98.48892969 | W18: 45.3819 | X18: =+W18*Traktori!$C$6 -> 43.112805 | Y18: 437.7426492 | Z18: =+IF(F18>0,G18*Traktori!$F$4*1000/AA18,0) -> 333.9332233 | AA18: 102.0100924 | AB18: =+IF(F18>0,W18/((Traktori!$C$5+$H$6)*9.81/1000),0) -> 0.5711216823
B19: =+Traktori!C27 -> 9 | C19: =+Traktori!D27 -> 9 | D19: 40.1531 | E19: =+IF(AND(F19>0,Luisto($F$9,AB19)<50),Luisto($F$9,AB19),"") ->  | F19: =+Piste(Traktori!$C$11:$E$16,Y19,1) -> 2216.462186 | G19: =IF(F19>1000,Piste(Traktori!$C$11:$E$15,Y19,2),"") -> 45.35378142 | U19: =+F19/V19*2*PI()/60*Traktori!$C$6*3.6 -> 9.067345306 | V19: =+Traktori!E27 -> 87.54571528 | W19: 47.7068 | X19: =+W19*Traktori!$C$6 -> 45.32146 | Y19: 517.6890708 | Z19: =+IF(F19>0,G19*Traktori!$F$4*1000/AA19,0) -> 317.0551762 | AA19: 120.1594525 | AB19: =+IF(F19>0,W19/((Traktori!$C$5+$H$6)*9.81/1000),0) -> 0.6003800607
B20: =+Traktori!C28 -> 10 | C20: =+Traktori!D28 -> 10 | D20: 42.478 | E20: =+IF(AND(F20>0,Luisto($F$9,AB20)<50),Luisto($F$9,AB20),"") ->  | F20: =+Piste(Traktori!$C$11:$E$16,Y20,1) -> 2193.516308 | G20: =IF(F20>1000,Piste(Traktori!$C$11:$E$15,Y20,2),"") -> 47.06483692 | U20: =+F20/V20*2*PI()/60*Traktori!$C$6*3.6 -> 9.970528673 | V20: =+Traktori!E28 -> 78.79114375 | W20: 50.0317 | X20: =+W20*Traktori!$C$6 -> 47.530115 | Y20: 603.2418459 | Z20: =+IF(F20>0,G20*Traktori!$F$4*1000/AA20,0) -> 285.3086235 | AA20: 138.567361 | AB20: =+IF(F20>0,W20/((Traktori!$C$5+$H$6)*9.81/1000),0) -> 0.629638439
B21: =+Traktori!C29 -> 11 | C21: =+Traktori!D29 -> 11 | D21: 44.8029 | E21: =+IF(AND(F21>0,Luisto($F$9,AB21)<50),Luisto($F$9,AB21),"") ->  | F21: =+Piste(Traktori!$C$11:$E$16,Y21,1) -> 2011.198051 | G21: =IF(F21>1000,Piste(Traktori!$C$11:$E$15,Y21,2),"") -> 48.88801949 | U21: =+F21/V21*2*PI()/60*Traktori!$C$6*3.6 -> 10.05599026 | V21: =+Traktori!E29 -> 71.6283125 | W21: 52.3566 | X21: =+W21*Traktori!$C$6 -> 49.73877 | Y21: 694.4009745 | Z21: =+IF(F21>0,G21*Traktori!$F$4*1000/AA21,0) -> 280.7940823 | AA21: 146.2492943 | AB21: =+IF(F21>0,W21/((Traktori!$C$5+$H$6)*9.81/1000),0) -> 0.6588968173
B22: =+Traktori!C30 -> 12 | C22: =+Traktori!D30 -> 12 | D22: 47.1278 | E22: =+IF(AND(F22>0,Luisto($F$9,AB22)<50),Luisto($F$9,AB22),"") ->  | F22: =+Piste(Traktori!$C$11:$E$16,Y22,1) -> 1270.668349 | G22: =IF(F22>1000,Piste(Traktori!$C$11:$E$15,Y22,2),"") -> 31.67837328 | U22: =+F22/V22*2*PI()/60*Traktori!$C$6*3.6 -> 6.930918265 | V22: =+Traktori!E30 -> 65.65928646 | W22: 54.6815 | X22: =+W22*Traktori!$C$6 -> 51.947425 | Y22: 791.1664564 | Z22: =+IF(F22>0,G22*Traktori!$F$4*1000/AA22,0) -> 252.7629771 | AA22: 105.2758353 | AB22: =+IF(F22>0,W22/((Traktori!$C$5+$H$6)*9.81/1000),0) -> 0.6881551956
A23: Moottori sammui! | B23: =+Traktori!C31 -> 13 | C23: =+Traktori!D31 -> 13 | D23: 49.4527 | E23: =+IF(AND(F23>0,Luisto($F$9,AB23)<50),Luisto($F$9,AB23),"") ->  | F23: =+Piste(Traktori!$C$11:$E$16,Y23,1) -> 0 | G23: =IF(F23>1000,Piste(Traktori!$C$11:$E$15,Y23,2),"") ->  | U23: =+F23/V23*2*PI()/60*Traktori!$C$6*3.6 -> 0 | V23: =+Traktori!E31 -> 60.60857212 | W23: 57.0064 | X23: =+W23*Traktori!$C$6 -> 54.15608 | Y23: 893.5382918 | Z23: =+IF(F23>0,G23*Traktori!$F$4*1000/AA23,0) -> 0 | AA23: 0 | AB23: =+IF(F23>0,W23/((Traktori!$C$5+$H$6)*9.81/1000),0) -> 0

Sheet Apuja
B3: Traktoritiedot
B4: http://www2.oecd.org/agr-coddb/index_en.asp
B5: http://tractortestlab.unl.edu/testreports.htm
B8: Traktorin suoritusarvot
B9: n | C9: 2000 | D9: 1/min | F9: n | G9: 2200 | H9: 1/min
B10: P | C10: 50 | D10: kW | F10: M | G10: =+G12*1000/(G9*2*PI()/60) -> 238.7324146 | H10: Nm
B11: Q | C11: 18 | D11: l/h | F11: Q | G11: 16 | H11: l/h
B12: M | C12: =+C10*1000/(C9*2*PI()/60) -> 238.7324146 | D12: Nm | F12: P | G12: 55 | H12: kW
B13: Qom | C13: =+IF(C11*0.835/C10*1000<190,"Virhe arvoissa",C11*0.835/C10*1000) -> 300.6 | D13: g/kWh | F13: Qom | G13: =+IF(G11*0.835/G12*1000<190,"--",G11*0.835/G12*1000) -> 242.9090909 | H13: g/kWh

Sheet Ohjeita
A3: Syötä 'Traktori' osaan vihreisiin kohtiin moottorin ja traktori tiedot. Näiden perusteella ohjelma laskee muut arvot.
A4: Moottorin tiedot täytyy hakea joko koetusselostuksista tai lehtien testeistä. Moottorin käyrästä tarvitaan kaikkiaan viisi pistettä ja ne pitää antaa oheisessa järjestyksessä.
A5: Mmax = suurimman vääntömomentin kohta
A6: Pmax/P80% = suurimman tehon kohta, jos se poikkeaa nimellistehosta. Muutoin piste, joka on suurimman momentin ja nimellistehon väliltä.
A7: Pnim = nimellistehon arvot
A8: P85 = piste, jossa momentti on 85% nimellistehon momentista tai niiltä paikkeilta oleva piste
A9: P25 = piste, jossa momentti on 25% nimellistehon momentista tai niiltä paikkeilta oleva piste
A10: P0=Suurin nopeus ilman kuormaa
A11: Esim. Koneviesti nro4/2011
A12: Moottorin tehopisteet olisivat seuraavat (poimittu kuvista):
B13: M Nm | C13: r/min | D13: l/h
A14: Mmax | B14: 800 | C14: 1200 | D14: 30
A15: Pmax | B15: 700 | C15: 2000 | D15: 49
A16: Pnim | B16: 600 | C16: 2200 | D16: 47
A17: P85 | B17: 500 | C17: 2220 | D17: 45
A18: P25 | B18: 150 | C18: 2250 | D18: 20
A19: P0 | B19: 0 | C19: 2260 | D19: 9
A22: Maan kulkukykyä varten voit valita kolmesta erilaisesta vaihtoehdosta. Käyrät ovat likimain oheisten kuvien mukaiset.
A55: Ohjelma on elävää elämää yksinkertaisempi. Se ei ota huomioon esimerkiksi lisäpainojen aiheuttamaa mahdollista renkaiden uppoumaa. Arvot myöskin lasketaan vain nelivetoiselle traktorille
A57: Kommentit ja kysymykset | D57: jukka.ahokas@helsinki.fi
A59: Lukitussalasana | C59: akatemia
A61: Versio | B61: 2 | C61: Korjattu väärin tapahtuva ajonopeuden laskenta

Sheet Info
